Cogmind - Beta 13 X2 @@@ ROGUE MODE // 2024.01.21 @ 08:45:02 Player: arkn Result: Self-destructed Performance ------------- Evolutions (1) 500 Regions Visited (2) 400 Robots Destroyed (38) 190 Value Destroyed (656) 656 Prototype IDs (2) 40 Alien Tech Used (0) 0 Bonus (0) 0 TOTAL SCORE: 1786 Bonus ------- None Cogmind --------- Core Integrity 204/400 Matter 277/300 Energy 280/280 System Corruption 0% Temperature Warm (114) Movement Rolling (130) Ox2 Location -9/Materials Parts ------- > --- POWER (1) -------- Cooled Ion Engine > --- PROPULSION (3) --- Compact Wheel Compact Wheel Compact Wheel > --- UTILITY (3) ------ Heat Sink Huge Storage Unit Seismic Detector > --- WEAPON (2) ------- Advanced Beam Cannon Advanced Beam Cannon > --- INVENTORY (25) --- Cooled Ion Engine Cooled Ion Engine Light Treads Light Treads Light Treads Light Treads Compact Wheel Armored Wheel Large Storage Unit High-capacity Storage Unit Medium Matter Pod (0) High-capacity Matter Pod (200) Sensor Array Signal Interpreter Light Armor Plating High-powered Tractor Beam Field Recycling Unit (0) Beam Rifle Beam Rifle Assault Rifle Assault Rifle Light Assault Rifle Rocket Launcher Datajack Mace Peak State ------------ > --- POWER ------------ Cooled Ion Engine > --- PROPULSION ------- Compact Wheel Compact Wheel Compact Wheel > --- UTILITY ---------- Huge Storage Unit Seismic Detector High-powered Tractor Beam > --- WEAPON ----------- Advanced Beam Cannon Advanced Beam Cannon > --- INVENTORY -------- Cooled Ion Engine Cooled Ion Engine Light Treads Light Treads Light Treads Light Treads Compact Wheel Armored Wheel Heat Sink Large Storage Unit High-capacity Storage Unit High-capacity Matter Pod Signal Interpreter Light Armor Plating Field Recycling Unit Beam Rifle Beam Rifle Assault Rifle Assault Rifle Light Assault Rifle Rocket Launcher Datajack Mace [Rating: 19] Favorites ----------- Power Ion Engine Engine Ion Engine Propulsion Compact Wheel Leg Aluminum Leg Wheel Compact Wheel Utility Seismic Detector Device Seismic Detector Storage Huge Storage Unit Weapon Light Assault Rifle Energy Gun EM Pulse Gun Energy Cannon Advanced Beam Cannon Ballistic Gun Light Assault Rifle Impact Weapon Mace Build | -11 -10 -9 ------- Run | Yrd Mat Mat Slots Evolved 2 | . . 2 Power . | . . . Propulsion 1 | . . 1 Utility 1 | . . 1 Weapon . | . . . Parts Attached 32 | 1 9 22 Power 5 | . 2 3 Engine 5 | . 2 3 Core . | . . . Reactor . | . . . Propulsion 6 | . 2 4 Treads . | . . . Leg . | . . . Wheel 6 | . 2 4 Hover . | . . . Flight . | . . . Utility 9 | 1 3 5 Device 4 | 1 . 3 Storage 5 | . 3 2 Processor . | . . . Hackware . | . . . Protection . | . . . Artifact . | . . . Weapon 12 | . 2 10 Energy Gun . | . . . Energy Cannon 3 | . . 3 Ballistic Gun 7 | . 2 5 Ballistic Cannon . | . . . Launcher . | . . . Special Weapon . | . . . Impact Weapon 2 | . . 2 Slashing Weapon . | . . . Piercing Weapon . | . . . Special Melee Weapon . | . . . Unidentified Prototypes 2 | . . 2 Parts Lost 11 | . 3 8 Power 3 | . 1 2 Propulsion 3 | . . 3 Utility 1 | . 1 . Weapon 4 | . 1 3 Highest Loss Streak 2 | . 2 2 To Critical Strikes . | . . . Average Slot Usage (%) 99 | . 99 99 Engine 12 | . 13 10 Leg 9 | . 17 . Wheel 20 | . 10 32 Device 14 | . 9 20 Storage 15 | . 18 12 Energy Gun 2 | . 5 . Energy Cannon 2 | . . 5 Ballistic Gun 18 | . 22 14 Naked Turns . | . . . Heaviest Build 98 | 14 32 98 Greatest Support 48 | 20 32 48 Greatest Overweight (x) 3 | . 1 3 Average Overweight (x) . | . . 1 Largest Inventory Capacity 25 | 8 15 25 Average Capacity 17 | 8 12 23 Most Carried 25 | 8 15 25 Average Carried 15 | 6 11 20 Final Capacity 25 | 8 15 25 Final Carried 25 | 8 15 25 Class Distribution -------------------- 70% | Mutant 29% | Scavenger-Mutant Dominant Class ---------------- Mutant | -10/Materials Scavenger-Mutant | -9/Materials Resources | -11 -10 -9 ----------- Run | Yrd Mat Mat Matter Collected 1138 | 214 508 416 Remotely 620 | 14 213 393 Salvage Created 1326 | 100 493 733 Parts 77 | 6 27 44 Haulers Intercepted 4 | . 2 2 Recyclers Shooed 3 | . 2 1 Parts Field Recycled . | . . . Retrieved Matter . | . . . Parts Self-Destructed . | . . . Prevented . | . . . Kills | -11 -10 -9 ------- Run | Yrd Mat Mat Combat Hostiles Destroyed 24 | . 10 14 Guns 20 | . 10 10 Cannons 4 | . . 4 Classes Destroyed 8 | 2 5 1 Worker 3 | . 1 2 Tunneler 1 | 1 . . Hauler 4 | . 2 2 Recycler 4 | 1 1 2 Watcher 2 | . 1 1 Swarmer 12 | . 6 6 Grunt 8 | . 4 4 Sentry 4 | . . 4 Best Kill Streak 4 | 2 4 4 Combat Bots Only 3 | . 3 3 Max Kills in Single Turn 1 | 1 1 1 Gunslinging . | . . . Exploded . | . . . Melee . | . . . Uniques/NPCs Destroyed . | . . . Combat | -11 -10 -9 -------- Run | Yrd Mat Mat Hostile Shots Fired 152 | . 69 83 Missed 40 | . 21 19 Damage Taken 1218 | . 434 784 Core 282 | . 86 196 Absorbed by Shields . | . . . Core Remaining (%) 82 | 100 65 . Volleys Fired 135 | 4 70 61 Largest 2 | 2 2 2 Hottest 136 | 60 60 136 Shots Fired 262 | 8 132 122 Gun 224 | 8 132 84 Cannon 38 | . . 38 Launcher . | . . . Special . | . . . Kinetic 201 | 4 113 84 Thermal 38 | . . 38 Explosive . | . . . Electromagnetic 23 | 4 19 . Robot Hit Streak 16 | 4 16 16 Robot Miss Streak 4 | 1 3 4 Penetration Max . | . . . Secondary Targets 3 | . 3 . Max Gunslinging Chain 1 | . 1 . Shots Hit Robots 168 | 5 82 81 Core Hits 63 | 3 31 29 Critical Kills 2 | . 1 1 Critical Parts Destroyed . | . . . Critical Strikes 2 | . 1 1 Destroy 1 | . 1 . Smash 1 | . . 1 Melee Attacks 8 | . . 8 Impact 8 | . . 8 Slashing . | . . . Piercing . | . . . Sneak Attacks 1 | . . 1 Combat Hostiles . | . . . Follow-up Attacks . | . . . Damage Inflicted 2164 | 52 753 1359 Guns 1512 | 52 732 728 Cannons 530 | . . 530 Explosions . | . . . Melee 101 | . . 101 Ramming 21 | . 21 . Kinetic 1375 | 28 619 728 Thermal 530 | . . 530 Explosive . | . . . Electromagnetic 137 | 24 113 . Impact 101 | . . 101 Slashing . | . . . Piercing . | . . . Highest Corruption . | . . . Average Corruption . | . . . Corruption Purged . | . . . Corruption Blocked . | . . . Overload Shots . | . . . Overflow Damage 2 | . . 2 Projectiles 2 | . . 2 Explosions . | . . . Melee . | . . . Knockbacks . | . . . Impact . | . . . Kinetic . | . . . Secondary . | . . . Self-Inflicted Damage . | . . . Shots . | . . . Rammed . | . . . Targets Rammed 2 | . 2 . Kicked 2 | . 2 . Crushed . | . . . Highest Temperature 204 | 20 40 204 Average Temperature 47 | 15 16 72 Received Heat Transfer 333 | . 108 225 Siege Activations . | . . . Robots Corrupted . | . . . Combat Hostiles . | . . . Parts Fried . | . . . Impact Corruptions . | . . . Robots Melted . | . . . Combat Hostiles . | . . . Parts Melted 3 | . . 3 Heat Transferred 962 | . . 962 Parts Sabotaged . | . . . Parts Stolen . | . . . Parts Stripped . | . . . Power Chain Reactions . | . . . Missiles Intercepted . | . . . Alert | -11 -10 -9 ------- Run | Yrd Mat Mat Peak Influence 289 | 10 181 289 Initial 63 | . 6 63 Average 118 | 8 95 150 Maximum Alert Level 1 | . . 1 Low Security (%) 88 | 100 100 74 Level 1 11 | . . 25 Level 2 . | . . . Level 3 . | . . . Level 4 . | . . . Level 5 . | . . . High Security . | . . . Max Security . | . . . Squads Dispatched 4 | . 3 1 Investigation 2 | . 1 1 Extermination . | . . . Reinforcement 2 | . 2 . Assault . | . . . Garrison . | . . . Intercept . | . . . Searches Triggered . | . . . Construction Impeded . | . . . Haulers Reinforced . | . . . Active Scanning Responses . | . . . Cargo Convoy Interrupts . | . . . Stealth | -11 -10 -9 --------- Run | Yrd Mat Mat Distress Signals 6 | . 2 4 Communications Jammed . | . . . Distress Signals . | . . . Times Spotted 59 | . 25 34 Peak Tracking Total 6 | . 4 6 Tactical Retreats 4 | . 2 2 Traps | -11 -10 -9 ------- Run | Yrd Mat Mat Traps Triggered . | . . . Indirectly . | . . . Trap Hack Attempts . | . . . Triggered . | . . . Disarmed . | . . . Reprogrammed . | . . . Reused . | . . . Traps Extracted . | . . . Installed . | . . . Triggered . | . . . Machines | -11 -10 -9 ---------- Run | Yrd Mat Mat Machines Disabled 1 | . 1 . Max in Single Turn 1 | . 1 . Machines Repaired . | . . . Machines Dismantled . | . . . Machines Sabotaged . | . . . Overloaded Fab Kills . | . . . Hacking | -11 -10 -9 --------- Run | Yrd Mat Mat Machines Accessed 10 | . 6 4 Terminals 8 | . 4 4 Fabricators . | . . . Repair Stations . | . . . Recycling Units 2 | . 2 . Scanalyzers . | . . . Garrison Access . | . . . Total Hacks 34 | . 21 13 Successful 17 | . 9 8 Failed 17 | . 12 5 Catastrophic 1 | . 1 . Database Lockouts . | . . . Manual 29 | . 18 11 Terminals 29 | . 16 13 Fabricators . | . . . Repair Stations . | . . . Recycling Units 5 | . 5 . Scanalyzers . | . . . Garrison Access . | . . . Terminal Hacks 5 | . 2 3 Terminal Index 2 | . 1 1 Locate Traps 1 | . . 1 Zone Layout 2 | . 1 1 Fabricator Hacks . | . . . Repair Station Hacks . | . . . Recycling Unit Hacks 3 | . 3 . Process 1 | . 1 . Report Inventory 2 | . 2 . Scanalyzer . | . . . Garrison Access Hacks . | . . . Unauthorized Hacks 9 | . 4 5 Terminals 7 | . 2 5 Track 1 | . . 1 Botnet 5 | . 1 4 Operators 1 | . 1 . Fabricators . | . . . Repair Stations . | . . . Recycling Units 2 | . 2 . Monitor 1 | . 1 . Mask 1 | . 1 . Scanalyzers . | . . . Garrison Access . | . . . Data Cores Recovered . | . . . Used . | . . . Hacking Detections 9 | . 5 4 Full Trace Events 2 | . 1 1 Feedback Events . | . . . Feedback Blocked . | . . . Robot Schematics Acquired . | . . . Robots Built . | . . . Authchips . | . . . Time . | . . . Total Robot Build Rating . | . . . Part Schematics Acquired . | . . . Parts Built . | . . . Authchips . | . . . Time . | . . . Total Part Build Rating . | . . . Parts Repaired . | . . . Time . | . . . Parts Recycled . | . . . Recycled Matter 107 | . 107 . Retrieved Matter . | . . . Retrieved Components . | . . . Parts Scanalyzed . | . . . Part Schematics Acquired . | . . . Parts Damaged . | . . . Bothacking | -11 -10 -9 ------------ Run | Yrd Mat Mat Used RIF Installer . | . . . Robots Hacked . | . . . Non-combat . | . . . Combat . | . . . Robot Hacks Applied . | . . . Relay Couplers Released . | . . . Fabnet Peak Effective % . | . . . Robots Rewired . | . . . Allies Hacked . | . . . Hacks Repelled . | . . . Allies | -11 -10 -9 -------- Run | Yrd Mat Mat Total Allies . | . . . Largest Group . | . . . Highest-Rated Group . | . . . Highest-Rated Ally . | . . . Total Orders . | . . . Ally Attacks . | . . . Total Damage . | . . . Kills . | . . . Allies Corrupted . | . . . Allies Melted . | . . . Intel | -11 -10 -9 ------- Run | Yrd Mat Mat Robot Analysis Total . | . . . Derelict Logs Recovered . | . . . Drone Launches . | . . . Drone Recoveries . | . . . Exploration | -11 -10 -9 ------------- Run | Yrd Mat Mat Turns Passed 2236 | 42 1184 1010 Spaces Moved 1157 | 23 540 594 Core . | . . . Treads . | . . . Legs 378 | 23 355 . Wheels 779 | . 185 594 Hover . | . . . Flight . | . . . Fastest Speed 100 | 120 100 100 Average Speed 119 | 120 121 116 Slowest Speed 190 | 120 190 145 Overloaded Moves . | . . . Propulsion Burnouts . | . . . Robots Hopped . | . . . Cave-ins Triggered . | . . . Exploration Rate (%) 38 | 3 66 46 Regions Visited 2 Branch Regions . Pre-discovered Areas . | . . . Known Exits Taken . | . . . Unknown Exits Taken 2 | 1 1 . Scrap Searched . | . . . Spaces Dug 4 | . . 4 Terrain Destroyed 4 | . . 4 Melee 4 | . . 4 Projectile . | . . . AOE . | . . . Terrain Rammed . | . . . Walls Destroyed . | . . . Machines Disabled . | . . . Actions | -11 -10 -9 --------- Run | Yrd Mat Mat Total 1754 | 29 953 772 Wait 368 | . 312 56 Move 1155 | 22 539 594 Hop . | . . . Pick Up 39 | 2 14 23 Fast Attach 5 | 1 1 3 Attach 9 | . 2 7 Detach . | . . . Swap 19 | . 6 13 Drop 14 | . 7 7 Fire 135 | 4 70 61 Melee 8 | . . 8 Ram . | . . . Kick 2 | . 2 . Crush . | . . . Escape Stasis . | . . . Rewire . | . . . Trap . | . . . Miscellaneous . | . . . Route ------- -11/Scrapyard -10/Materials (discovered 2 exits: *Mat x2) -9/Materials (discovered 2 exits: [*Mat] / [*Min]) History --------- Turn | Location | Event 13 | -11/Scrapyard | Discovered new exit (range 3) 43 | -11/Scrapyard | Entered Materials 303 | -10/Materials | Build established: Mutant 422 | -10/Materials | Discovered new exit (range 15) 921 | -10/Materials | Discovered new exit (range 14) 1227 | -10/Materials | Entered another Materials area 1227 | -9/Materials | Evolved 2 slots: Propulsion x1, Utility x1 1523 | -9/Materials | Build established: Scavenger-Mutant 1572 | -9/Materials | Discovered new exit (range 7) 2105 | -9/Materials | Discovered new exit (range 8) 2193 | -9/Materials | Build established: Mutant 2237 | -9/Materials | Self-destructed Last Messages --------------- 02207_ Sneak attack on K-01 Serf. 02207_ K-01 Serf suffers critical hit (Smash). 02207_ K-01 Serf destroyed. 02207_ K-01 Serf collects debris. 02208_ Acquired 12 matter. 02210_ K-01 Serf cleans the Atomic Centrifuge. 02211_ K-01 Serf collects debris. 02212_ G-34 Mercenary destroyed. 02213_ K-01 Serf collects debris. 02215_ R-06 Scavenger collects Sml. Matter Pod. 02217_ K-01 Serf collects debris. 02219_ R-06 Scavenger collects Signal Interpreter. 02219_ W-16 Scout sends out distress signal. 02223_ R-06 Scavenger collects Aluminum Leg. 02228_ K-01 Serf collects debris. 02229_ W-16 Scout sends out distress signal. 02231_ G-34 Mercenary destroyed. 02231_ K-01 Serf collects debris. 02235_ R-06 Scavenger collects Hover Unit. 02236_ K-01 Serf collects debris. Map ----- +----------------------------------------------------+ | | | ???????????????????????###############???????????? | | ???????????????????????# #???????????? | | ???????????????????????# #???????????? | | ???????????????????????# """ """ """ ############# | | ???#####???????????????# """ """ """ + | | ??##"""##??????????????# """ """ """ #### | | ?##"! !"##????????????## #?## | | ?#"" ""#????????????########/######### # | | ?# #????????????## T ####### | | ?# < #?????????????# ### #?????? | | ?# #?????????????# #?#####?????? | | ?# ##????????????# ###### #####???????? | | ?## ####???????????# #????# ######### | | #### ### #######?????# #????# < # | | "" # # #?????# ######/## # | | "" + / """ !! ####### # ## + | | "" # # "Y" ! # # # ## # | | # # % !! / """ #k # ## # | | # ###/####### """=r k/ "" ## ######### | | # ### ##????# """%#g g# S"" ## #???##### | | # #????# *[#=%*# "" + #???# | | #### %#????# # ########### #???# """ | | ???# #????# # #???###???# #???# "R" | | ######### ############ #?????????# #??## " " | | # T r @ #??######## #??# | | + ^ #### ## #??## | | # """"" ## #???# | | # % ""T""s ## [#???#% | | ?# """ u ## %=######### | | ?# """ #### ##=!=[ * | | # """ #??## ###=!=* | | # """ #???# #?#*%*!== | | + """ #???# #?# ** | | ##########+####### """ #???# #?# | | ???????? ????# """ #???# #?# | | ?????? ??# """ #???# #?# | | ?????# """ """ + #???# ### | | ?????# """ """ # ^ #???# ######### | | ?????# """ """ # """ w #???# #???????? | | ?????# # """ "???# "" #???????? | | ?????# # """ T???# "T #???????? | | ???????#######??## """ "#??# "" #???????? | | ????????????????? ^ ?"" ##??# #???????? | | ?????????????????# ?? #???# +???????? | | ??????????????????????? #???# """ #???????? | | ???????????????????????" #???# """ #???????? | | ???????????????????????" #???# """ #???????? | | ???????????????????????? ????# #???????? | | ??????????????????^????? ????# ??? #???????? | +----------------------------------------------------+ Best States ------------- Heat Dissipation 38 Energy Generation 14 Energy Capacity 280 Matter Stores 500 Matter Capacity 500 Sight Range 16 Terrain Scan Density 10 Evasion (%) 55 Item Schematics ----------------- None Robot Schematics ------------------ None Fabricated ------------ Nothing Alien Tech Used ----------------- None Achievements -------------- None Challenges ------------ None Game ------ Seed SniperDisposableOptics Manual? 0 Play Time 00:31:10 Cumulative 108.3 hours Start 2024.01.20 @ 18:40:15 End 2024.01.21 @ 08:45:02 Sessions 3 Manual Loads 0 Difficulty Rogue Special Mode None Game No. 99 Rogue 99 Adventurer 0 Explorer 0 Win Type - Total 0 Types 0/0/0/0/0/0/0/0/0 Lore% 34 Gallery% 48 Achievement% 37 Wizard Run 0 Options --------- ASCII 0 Keyboard 0 Movement Numpad Keybinds 0 Fullscreen 1 Font 24/Proggy Map View 113x50 Zoom Use 0% Tactical HUD 1 Map Filters NONE Filters NONE Steam 1 RUN: c944f837-ee4a-4a7e-8363-392bebcf41ac